[Event "*** Titled Tuesday Blitz"]
[Site "Chess.com"]
[Date "2020.05.19"]
[Round "6"]
[White "Slovak_fighter2000"]
[Black "Kezin_Roman"]
[Result "0-1"]
[WhiteElo "2547"]
[BlackElo "2756"]
[TimeControl "180+1"]
[EndTime "13:09:49 PDT"]
[Termination "Kezin_Roman won by resignation"]

1. Nf3 {[%clk 0:03:00.9]} 1... d5 {[%clk 0:02:59.6]} 2. d4 {[%clk 0:03:00.9]}
2... Nf6 {[%clk 0:03:00.1]} 3. Bf4 {[%clk 0:03:01]} 3... c5 {[%clk 0:03:00.4]}
4. e3 {[%clk 0:03:01.1]} 4... Nc6 {[%clk 0:03:00.6]} 5. Nbd2 {[%clk 0:03:01.6]}
5... Bg4 {[%clk 0:02:59.2]} 6. c3 {[%clk 0:03:01.1]} 6... e6 {[%clk 0:02:59.5]}
7. Bb5 {[%clk 0:03:00.2]} 7... Nd7 {[%clk 0:02:39.2]} 8. h3 {[%clk 0:02:58.3]}
8... Bh5 {[%clk 0:02:39.4]} 9. Qa4 {[%clk 0:02:52.2]} 9... Qc8 {[%clk
0:02:24.5]} 10. O-O {[%clk 0:02:37.2]} 10... a6 {[%clk 0:02:20]} 11. Bxc6 {[%clk
0:02:36.1]} 11... Qxc6 {[%clk 0:02:20.9]} 12. Qxc6 {[%clk 0:02:33.4]} 12... bxc6
{[%clk 0:02:21.8]} 13. c4 {[%clk 0:02:16.9]} 13... cxd4 {[%clk 0:02:12.1]} 14.
exd4 {[%clk 0:02:15.1]} 14... Be7 {[%clk 0:02:07.3]} 15. Rac1 {[%clk 0:02:12.6]}
15... Nb6 {[%clk 0:01:59.8]} 16. Ne5 {[%clk 0:02:01.4]} 16... Rc8 {[%clk
0:01:56.1]} 17. g4 {[%clk 0:01:44]} 17... Bg6 {[%clk 0:01:55.5]} 18. Nxg6 {[%clk
0:01:38]} 18... hxg6 {[%clk 0:01:55.1]} 19. Kg2 {[%clk 0:01:38.4]} 19... Kd7
{[%clk 0:01:35.8]} 20. b3 {[%clk 0:01:30.9]} 20... Rhd8 {[%clk 0:00:47.5]} 21.
Nf3 {[%clk 0:01:29.8]} 21... c5 {[%clk 0:00:45.1]} 22. cxd5 {[%clk 0:01:15.9]}
22... Nxd5 {[%clk 0:00:45.1]} 23. Be3 {[%clk 0:01:11.5]} 23... f6 {[%clk
0:00:24.3]} 24. Rfd1 {[%clk 0:01:05.4]} 24... Nxe3+ {[%clk 0:00:20.4]} 25. fxe3
{[%clk 0:01:06.3]} 25... Ke8 {[%clk 0:00:21]} 26. Kf2 {[%clk 0:00:58]} 26...
cxd4 {[%clk 0:00:18]} 27. exd4 {[%clk 0:00:58.9]} 27... Ba3 {[%clk 0:00:12.7]}
28. Rc4 {[%clk 0:00:53.6]} 28... Rxc4 {[%clk 0:00:13.3]} 29. bxc4 {[%clk
0:00:54.5]} 29... Rb8 {[%clk 0:00:14.2]} 30. Rd2 {[%clk 0:00:49.5]} 30... Kd7
{[%clk 0:00:13.9]} 31. Ke3 {[%clk 0:00:37.4]} 31... Bc1 {[%clk 0:00:12.9]} 32.
Kd3 {[%clk 0:00:32.2]} 32... Bxd2 {[%clk 0:00:13]} 33. Nxd2 {[%clk 0:00:33.1]}
33... Rh8 {[%clk 0:00:13.4]} 34. c5 {[%clk 0:00:31.8]} 34... Rxh3+ {[%clk
0:00:14.3]} 35. Kc4 {[%clk 0:00:31.4]} 35... Rg3 {[%clk 0:00:12.4]} 36. Kb4
{[%clk 0:00:25.6]} 36... Rxg4 {[%clk 0:00:12.2]} 37. Nb3 {[%clk 0:00:26]} 37...
g5 {[%clk 0:00:12.6]} 38. Ka5 {[%clk 0:00:26.4]} 38... Rg2 {[%clk 0:00:12]} 39.
Kb6 {[%clk 0:00:26.1]} 39... Rxa2 {[%clk 0:00:11.7]} 40. Kb7 {[%clk 0:00:21.7]}
40... Rc2 {[%clk 0:00:11.5]} 41. Na5 {[%clk 0:00:19.9]} 41... g4 {[%clk
0:00:11.9]} 42. c6+ {[%clk 0:00:19.8]} 42... Kd6 {[%clk 0:00:11.5]} 43. Kb6
{[%clk 0:00:17.7]} 43... Rxc6+ {[%clk 0:00:06.2]} 44. Nxc6 {[%clk 0:00:17.7]}
44... g3 {[%clk 0:00:07.1]} 45. Nd8 {[%clk 0:00:10.6]} 45... g2 {[%clk
0:00:07.3]} 46. Nb7+ {[%clk 0:00:11]} 46... Ke7 {[%clk 0:00:07.6]} 0-1

[Event "*** Titled Tuesday Blitz"]
[Site "Chess.com"]
[Date "2020.05.19"]
[Round "6"]
[White "noblerone"]
[Black "Gentle_Emperor"]
[Result "1-0"]
[WhiteElo "2449"]
[BlackElo "2289"]
[TimeControl "180+1"]
[EndTime "13:09:49 PDT"]
[Termination "noblerone won by resignation"]

1. d4 {[%clk 0:03:00.9]} 1... Nf6 {[%clk 0:02:58.3]} 2. Nf3 {[%clk 0:02:59.1]}
2... e6 {[%clk 0:02:57]} 3. Bg5 {[%clk 0:02:59.3]} 3... Be7 {[%clk 0:02:56.3]}
4. Nbd2 {[%clk 0:02:59.9]} 4... b6 {[%clk 0:02:55.9]} 5. e3 {[%clk 0:03:00.1]}
5... Bb7 {[%clk 0:02:55.3]} 6. Bd3 {[%clk 0:03:00.7]} 6... d6 {[%clk 0:02:54.5]}
7. a4 {[%clk 0:02:58.8]} 7... a6 {[%clk 0:02:53.9]} 8. c3 {[%clk 0:02:58.7]}
8... Nbd7 {[%clk 0:02:54]} 9. O-O {[%clk 0:02:55.6]} 9... O-O {[%clk 0:02:54]}
10. e4 {[%clk 0:02:54.8]} 10... c5 {[%clk 0:02:54.1]} 11. Qe2 {[%clk 0:02:51.9]}
11... h6 {[%clk 0:02:53.3]} 12. Bh4 {[%clk 0:02:50.9]} 12... Re8 {[%clk
0:02:51.3]} 13. Rfd1 {[%clk 0:02:45.5]} 13... Qc7 {[%clk 0:02:50]} 14. Bg3
{[%clk 0:02:43.7]} 14... Nh5 {[%clk 0:02:48.4]} 15. Nf1 {[%clk 0:02:39.5]} 15...
Nxg3 {[%clk 0:02:43.6]} 16. Nxg3 {[%clk 0:02:40.4]} 16... Nf6 {[%clk 0:02:41.9]}
17. Rac1 {[%clk 0:02:36.9]} 17... Rec8 {[%clk 0:02:18]} 18. h3 {[%clk
0:02:34.2]} 18... c4 {[%clk 0:02:17.3]} 19. Bc2 {[%clk 0:02:33.7]} 19... b5
{[%clk 0:02:17.4]} 20. axb5 {[%clk 0:02:31.2]} 20... axb5 {[%clk 0:02:18.3]} 21.
Nh2 {[%clk 0:02:10.3]} 21... Ra2 {[%clk 0:02:09.6]} 22. Bb1 {[%clk 0:02:09.9]}
22... Ra5 {[%clk 0:02:02.7]} 23. Ng4 {[%clk 0:02:07.6]} 23... b4 {[%clk
0:01:16.9]} 24. Nxf6+ {[%clk 0:01:47.4]} 24... Bxf6 {[%clk 0:01:17.8]} 25. Nh5
{[%clk 0:01:46.4]} 25... Be7 {[%clk 0:01:03.4]} 26. f4 {[%clk 0:01:39.6]} 26...
g6 {[%clk 0:00:50.3]} 27. Ng3 {[%clk 0:01:35.8]} 27... bxc3 {[%clk 0:00:46.5]}
28. bxc3 {[%clk 0:01:35.6]} 28... Bh4 {[%clk 0:00:38]} 29. Nf1 {[%clk
0:01:29.4]} 29... Qd7 {[%clk 0:00:26.8]} 30. Nh2 {[%clk 0:01:24.4]} 30... f5
{[%clk 0:00:26.4]} 31. Nf3 {[%clk 0:01:19.1]} 31... Bf6 {[%clk 0:00:26]} 32. e5
{[%clk 0:01:10.8]} 32... Be7 {[%clk 0:00:26]} 33. exd6 {[%clk 0:01:10]} 33...
Bxd6 {[%clk 0:00:26.9]} 34. Ne5 {[%clk 0:01:09.8]} 34... Bxe5 {[%clk 0:00:27.3]}
35. dxe5 {[%clk 0:01:08.6]} 35... Bd5 {[%clk 0:00:27.6]} 36. Qf2 {[%clk
0:01:04.6]} 36... Rb8 {[%clk 0:00:26.5]} 37. Rd2 {[%clk 0:00:52.4]} 37... Qa7
{[%clk 0:00:26.6]} 38. Rd4 {[%clk 0:00:37.7]} 38... Rab5 {[%clk 0:00:24.4]} 39.
Bc2 {[%clk 0:00:32.5]} 39... Qa3 {[%clk 0:00:24.4]} 40. Qd2 {[%clk 0:00:28]}
40... Rb2 {[%clk 0:00:24.7]} 41. Kh2 {[%clk 0:00:22.9]} 41... R8b3 {[%clk
0:00:21.7]} 42. Rxd5 {[%clk 0:00:19.7]} 42... exd5 {[%clk 0:00:18]} 43. Qxd5+
{[%clk 0:00:20.6]} 43... Kf8 {[%clk 0:00:18.3]} 44. Bxb3 {[%clk 0:00:20.1]}
44... cxb3 {[%clk 0:00:17.6]} 45. Rd1 {[%clk 0:00:18.9]} 45... Qe7 {[%clk
0:00:17.5]} 46. Qc6 {[%clk 0:00:17.2]} 46... Rc2 {[%clk 0:00:05.4]} 47. Qc8+
{[%clk 0:00:16.5]} 47... Kf7 {[%clk 0:00:05.3]} 48. Rd7 {[%clk 0:00:16.8]} 48...
b2 {[%clk 0:00:05.2]} 49. Rxe7+ {[%clk 0:00:15.7]} 49... Kxe7 {[%clk 0:00:06.1]}
50. Qb7+ {[%clk 0:00:15.5]} 50... Ke6 {[%clk 0:00:06]} 51. Qb3+ {[%clk
0:00:15.7]} 51... Ke7 {[%clk 0:00:04.9]} 1-0

[Event "*** Titled Tuesday Blitz"]
[Site "Chess.com"]
[Date "2020.05.19"]
[Round "6"]
[White "CHESSMASTER759"]
[Black "Anton_Demchenko"]
[Result "1-0"]
[WhiteElo "2667"]
[BlackElo "2822"]
[TimeControl "180+1"]
[EndTime "13:09:50 PDT"]
[Termination "CHESSMASTER759 won on time"]

1. e4 {[%clk 0:03:00.9]} 1... e5 {[%clk 0:02:55.9]} 2. Nf3 {[%clk 0:02:59.7]}
2... Nc6 {[%clk 0:02:53.6]} 3. Bc4 {[%clk 0:02:59]} 3... Nf6 {[%clk 0:02:53.6]}
4. O-O {[%clk 0:02:56.9]} 4... Nxe4 {[%clk 0:02:53]} 5. Bb5 {[%clk 0:02:45]}
5... Nf6 {[%clk 0:02:41.2]} 6. Bxc6 {[%clk 0:02:38.4]} 6... dxc6 {[%clk
0:02:40.7]} 7. Nxe5 {[%clk 0:02:39.3]} 7... Be7 {[%clk 0:02:40.4]} 8. Re1 {[%clk
0:02:36.1]} 8... O-O {[%clk 0:02:40.7]} 9. d4 {[%clk 0:02:36]} 9... c5 {[%clk
0:02:36]} 10. Be3 {[%clk 0:02:30.9]} 10... Nd5 {[%clk 0:02:34]} 11. Nc3 {[%clk
0:02:20.2]} 11... Nxe3 {[%clk 0:02:30.4]} 12. fxe3 {[%clk 0:02:21.1]} 12... cxd4
{[%clk 0:02:06.5]} 13. exd4 {[%clk 0:02:19.7]} 13... f6 {[%clk 0:02:07]} 14. Nf3
{[%clk 0:02:16.1]} 14... Bf5 {[%clk 0:02:04.9]} 15. Qe2 {[%clk 0:02:15.1]} 15...
Rf7 {[%clk 0:01:29.4]} 16. Rad1 {[%clk 0:02:14.3]} 16... Qd7 {[%clk 0:01:25.8]}
17. Qf2 {[%clk 0:02:13.8]} 17... Bb4 {[%clk 0:01:21.5]} 18. Re3 {[%clk
0:02:07.4]} 18... Re8 {[%clk 0:01:07]} 19. Rxe8+ {[%clk 0:01:53.6]} 19... Qxe8
{[%clk 0:01:07.9]} 20. Nd5 {[%clk 0:01:54.1]} 20... Bd6 {[%clk 0:01:03.8]} 21.
Ne3 {[%clk 0:01:54.4]} 21... Bc8 {[%clk 0:00:58.2]} 22. c4 {[%clk 0:01:47.7]}
22... c6 {[%clk 0:00:53.4]} 23. Nh4 {[%clk 0:01:29.4]} 23... g6 {[%clk
0:00:47.9]} 24. Nf3 {[%clk 0:01:23.6]} 24... Re7 {[%clk 0:00:46.6]} 25. Re1
{[%clk 0:01:23.7]} 25... Bf4 {[%clk 0:00:41.8]} 26. Nf1 {[%clk 0:01:20]} 26...
Rxe1 {[%clk 0:00:41.8]} 27. Qxe1 {[%clk 0:01:18.9]} 27... Qxe1 {[%clk
0:00:39.9]} 28. Nxe1 {[%clk 0:01:19.8]} 28... Bc7 {[%clk 0:00:30.9]} 29. Kf2
{[%clk 0:01:16.8]} 29... Kf7 {[%clk 0:00:31.3]} 30. g3 {[%clk 0:01:14.7]} 30...
h5 {[%clk 0:00:30.7]} 31. Ne3 {[%clk 0:01:14.7]} 31... Bb6 {[%clk 0:00:26.7]}
32. c5 {[%clk 0:01:12.3]} 32... Bc7 {[%clk 0:00:23.3]} 33. b4 {[%clk 0:01:12.6]}
33... g5 {[%clk 0:00:22.7]} 34. Nf3 {[%clk 0:01:09.4]} 34... Be6 {[%clk
0:00:22.3]} 35. a4 {[%clk 0:01:07]} 35... a5 {[%clk 0:00:19.6]} 36. b5 {[%clk
0:01:02.5]} 36... Bb3 {[%clk 0:00:19.7]} 37. b6 {[%clk 0:00:53.5]} 37... Bb8
{[%clk 0:00:08.3]} 38. h4 {[%clk 0:00:47.9]} 38... gxh4 {[%clk 0:00:05.6]} 39.
gxh4 {[%clk 0:00:47.6]} 39... Ke6 {[%clk 0:00:05.2]} 40. Nd2 {[%clk 0:00:45.3]}
40... Bxa4 {[%clk 0:00:05.2]} 41. Ndc4 {[%clk 0:00:42]} 41... Bb5 {[%clk
0:00:05.6]} 42. Nxa5 {[%clk 0:00:41.7]} 42... Ba6 {[%clk 0:00:06.3]} 43. Kf3
{[%clk 0:00:39.5]} 43... f5 {[%clk 0:00:05]} 44. Nb3 {[%clk 0:00:19.9]} 44...
Bd3 {[%clk 0:00:02.6]} 45. Na5 {[%clk 0:00:17.3]} 45... Ba6 {[%clk 0:00:02.8]}
46. Nb3 {[%clk 0:00:16.5]} 46... f4 {[%clk 0:00:01.7]} 47. Ng2 {[%clk
0:00:14.5]} 47... Kf5 {[%clk 0:00:02.1]} 48. d5 {[%clk 0:00:12.1]} 48... cxd5
{[%clk 0:00:01.8]} 49. Nd4+ {[%clk 0:00:12.8]} 49... Ke5 {[%clk 0:00:02.3]} 50.
c6 {[%clk 0:00:11.6]} 1-0

[Event "*** Titled Tuesday Blitz"]
[Site "Chess.com"]
[Date "2020.05.19"]
[Round "6"]
[White "TigrVShlyape"]
[Black "IIIlllII1llIl"]
[Result "1-0"]
[WhiteElo "2817"]
[BlackElo "2635"]
[TimeControl "180+1"]
[EndTime "13:09:50 PDT"]
[Termination "TigrVShlyape won on time"]

1. d4 {[%clk 0:03:00.9]} 1... Nf6 {[%clk 0:02:59.8]} 2. Nf3 {[%clk 0:03:00.2]}
2... g6 {[%clk 0:02:59.3]} 3. c3 {[%clk 0:02:58.8]} 3... Bg7 {[%clk 0:02:59.1]}
4. Bf4 {[%clk 0:02:58]} 4... O-O {[%clk 0:02:58.4]} 5. Nbd2 {[%clk 0:02:56.2]}
5... Nh5 {[%clk 0:02:25.7]} 6. Be5 {[%clk 0:02:54.6]} 6... f6 {[%clk 0:02:23.1]}
7. Bg3 {[%clk 0:02:54.5]} 7... d5 {[%clk 0:02:12.9]} 8. e4 {[%clk 0:02:49.1]}
8... c6 {[%clk 0:02:05.8]} 9. Bd3 {[%clk 0:02:31.1]} 9... e5 {[%clk 0:01:25.2]}
10. dxe5 {[%clk 0:02:28.3]} 10... Nxg3 {[%clk 0:01:23.6]} 11. hxg3 {[%clk
0:02:27.3]} 11... fxe5 {[%clk 0:01:23.5]} 12. Qe2 {[%clk 0:01:54.1]} 12... Nd7
{[%clk 0:01:17.5]} 13. O-O-O {[%clk 0:01:46.4]} 13... Nc5 {[%clk 0:01:15.9]} 14.
Bc2 {[%clk 0:01:42.6]} 14... Be6 {[%clk 0:01:02.1]} 15. Nb3 {[%clk 0:01:36]}
15... Nd7 {[%clk 0:00:52.7]} 16. exd5 {[%clk 0:01:31.1]} 16... cxd5 {[%clk
0:00:53.6]} 17. Rh4 {[%clk 0:01:25.8]} 17... Qf6 {[%clk 0:00:44.7]} 18. Rdh1
{[%clk 0:01:21.1]} 18... h5 {[%clk 0:00:30.6]} 19. Qe3 {[%clk 0:01:15.3]} 19...
a5 {[%clk 0:00:22.6]} 20. Nbd2 {[%clk 0:00:49.5]} 20... a4 {[%clk 0:00:17.1]}
21. a3 {[%clk 0:00:49.2]} 21... Rac8 {[%clk 0:00:15.9]} 22. Qg5 {[%clk
0:00:47.8]} 22... Nc5 {[%clk 0:00:13.7]} 23. Qxf6 {[%clk 0:00:46.6]} 23... Bxf6
{[%clk 0:00:13]} 24. Rb4 {[%clk 0:00:47]} 24... e4 {[%clk 0:00:12.8]} 25. Ne1
{[%clk 0:00:39.5]} 25... Be5 {[%clk 0:00:09.9]} 26. f4 {[%clk 0:00:39.2]} 26...
exf3 {[%clk 0:00:09.7]} 27. Nexf3 {[%clk 0:00:38.9]} 27... Bxg3 {[%clk
0:00:09.8]} 28. Bxg6 {[%clk 0:00:39]} 28... Kg7 {[%clk 0:00:08.2]} 29. Bc2
{[%clk 0:00:38.3]} 29... Bg4 {[%clk 0:00:07.2]} 30. Kb1 {[%clk 0:00:33.9]} 30...
Rfe8 {[%clk 0:00:06.8]} 31. Nd4 {[%clk 0:00:30.5]} 31... Be5 {[%clk 0:00:04.3]}
32. Nf5+ {[%clk 0:00:29.9]} 32... Kf6 {[%clk 0:00:03.5]} 33. Ne3 {[%clk
0:00:29.3]} 33... Kg5 {[%clk 0:00:02.5]} 34. Nxg4 {[%clk 0:00:28.7]} 34... hxg4
{[%clk 0:00:03.4]} 35. Rb6 {[%clk 0:00:28.1]} 35... Re6 {[%clk 0:00:03]} 36.
Rxe6 {[%clk 0:00:27.5]} 36... Nxe6 {[%clk 0:00:03.9]} 37. Bxa4 {[%clk 0:00:28]}
37... Nf4 {[%clk 0:00:03.2]} 38. Re1 {[%clk 0:00:27.1]} 38... Bf6 {[%clk
0:00:03.2]} 39. g3 {[%clk 0:00:27.2]} 39... Nh5 {[%clk 0:00:03.5]} 40. Re3
{[%clk 0:00:27]} 40... Rf8 {[%clk 0:00:02.9]} 41. Rd3 {[%clk 0:00:27.1]} 41...
d4 {[%clk 0:00:03]} 42. cxd4 {[%clk 0:00:26.7]} 42... Bd8 {[%clk 0:00:03.2]} 43.
Ne4+ {[%clk 0:00:26.7]} 43... Kh6 {[%clk 0:00:02.2]} 44. Bd7 {[%clk 0:00:25.9]}
44... Rf3 {[%clk 0:00:02.2]} 45. Rxf3 {[%clk 0:00:25.9]} 45... gxf3 {[%clk
0:00:03.1]} 46. Bg4 {[%clk 0:00:26.2]} 46... Nf6 {[%clk 0:00:03]} 47. Bxf3
{[%clk 0:00:25.1]} 47... Nxe4 {[%clk 0:00:03.1]} 48. Bxe4 {[%clk 0:00:25.7]}
48... b6 {[%clk 0:00:04]} 49. g4 {[%clk 0:00:26.2]} 49... Kg5 {[%clk 0:00:04.9]}
50. Bf3 {[%clk 0:00:26]} 50... Kf4 {[%clk 0:00:05.8]} 51. Bd1 {[%clk 0:00:25.4]}
51... Ke4 {[%clk 0:00:06.6]} 52. Kc2 {[%clk 0:00:24.2]} 52... Kxd4 {[%clk
0:00:06.7]} 53. Kb3 {[%clk 0:00:23.7]} 53... Kc5 {[%clk 0:00:04.4]} 54. Bc2
{[%clk 0:00:23.8]} 54... b5 {[%clk 0:00:04.1]} 55. Bf5 {[%clk 0:00:23.9]} 55...
Bf6 {[%clk 0:00:04]} 56. Kc2 {[%clk 0:00:24.1]} 56... b4 {[%clk 0:00:03.6]} 57.
a4 {[%clk 0:00:23.8]} 57... Kb6 {[%clk 0:00:02.5]} 58. b3 {[%clk 0:00:23.3]}
58... Kc5 {[%clk 0:00:01.2]} 59. Kd3 {[%clk 0:00:23.6]} 1-0

[Event "*** Titled Tuesday Blitz"]
[Site "Chess.com"]
[Date "2020.05.19"]
[Round "6"]
[White "Nara_Kh"]
[Black "pfalcon1949"]
[Result "1-0"]
[WhiteElo "2286"]
[BlackElo "1961"]
[TimeControl "180+1"]
[EndTime "13:09:50 PDT"]
[Termination "Nara_Kh won by checkmate"]

1. e4 {[%clk 0:03:00.9]} 1... e6 {[%clk 0:02:59.9]} 2. d4 {[%clk 0:03:00.5]}
2... d5 {[%clk 0:02:59.8]} 3. Nd2 {[%clk 0:03:00.6]} 3... c5 {[%clk 0:02:59]} 4.
Ngf3 {[%clk 0:03:00]} 4... Nc6 {[%clk 0:02:58.3]} 5. exd5 {[%clk 0:02:55.4]}
5... exd5 {[%clk 0:02:58.1]} 6. Bb5 {[%clk 0:02:54.9]} 6... Qe7+ {[%clk
0:02:54.9]} 7. Be2 {[%clk 0:02:44.6]} 7... Qc7 {[%clk 0:02:49.5]} 8. O-O {[%clk
0:02:43.6]} 8... Bd6 {[%clk 0:02:48.8]} 9. dxc5 {[%clk 0:02:41.1]} 9... Bxc5
{[%clk 0:02:47.9]} 10. Nb3 {[%clk 0:02:39.1]} 10... Bd6 {[%clk 0:02:45.6]} 11.
Re1 {[%clk 0:02:24.2]} 11... Nge7 {[%clk 0:02:43.7]} 12. h3 {[%clk 0:02:16.4]}
12... O-O {[%clk 0:02:43.4]} 13. Nbd4 {[%clk 0:02:13.8]} 13... Ng6 {[%clk
0:02:26.2]} 14. Nb5 {[%clk 0:01:54.9]} 14... Qb8 {[%clk 0:02:20.9]} 15. Qxd5
{[%clk 0:01:46.3]} 15... Bf4 {[%clk 0:02:20.2]} 16. Bxf4 {[%clk 0:01:19.1]}
16... Nxf4 {[%clk 0:02:17.6]} 17. Qd6 {[%clk 0:01:18.9]} 17... Nxe2+ {[%clk
0:02:14.1]} 18. Rxe2 {[%clk 0:01:19.8]} 18... Qxd6 {[%clk 0:02:13.5]} 19. Nxd6
{[%clk 0:01:20.7]} 19... Rb8 {[%clk 0:02:10]} 20. c4 {[%clk 0:00:48.9]} 20... b6
{[%clk 0:01:57.8]} 21. Nxc8 {[%clk 0:00:29.3]} 21... Rbxc8 {[%clk 0:01:51.9]}
22. Rd1 {[%clk 0:00:30]} 22... Rfd8 {[%clk 0:01:49.4]} 23. Red2 {[%clk
0:00:28.9]} 23... Rxd2 {[%clk 0:01:40.3]} 24. Rxd2 {[%clk 0:00:29.8]} 24... Rc7
{[%clk 0:01:39.8]} 25. b3 {[%clk 0:00:30]} 25... f6 {[%clk 0:01:38.4]} 26. Kf1
{[%clk 0:00:25.7]} 26... Kf7 {[%clk 0:01:38.4]} 27. Ke2 {[%clk 0:00:22.4]} 27...
Ke7 {[%clk 0:01:38.4]} 28. Ke3 {[%clk 0:00:20.8]} 28... Nb4 {[%clk 0:01:37.3]}
29. Ke4 {[%clk 0:00:20.4]} 29... Nc6 {[%clk 0:01:36.8]} 30. a3 {[%clk 0:00:20]}
30... Kf7 {[%clk 0:01:35.5]} 31. b4 {[%clk 0:00:19.2]} 31... Re7+ {[%clk
0:01:35.3]} 32. Kd3 {[%clk 0:00:17.7]} 32... Ne5+ {[%clk 0:01:29.3]} 33. Nxe5+
{[%clk 0:00:17.2]} 33... Rxe5 {[%clk 0:01:30.2]} 34. Kc3 {[%clk 0:00:17.4]}
34... Re7 {[%clk 0:01:29.8]} 35. Kd3 {[%clk 0:00:15.4]} 35... Rd7+ {[%clk
0:01:29.7]} 36. Kc3 {[%clk 0:00:15.4]} 36... Rc7 {[%clk 0:01:29.7]} 37. Rd6
{[%clk 0:00:14.8]} 37... Ke7 {[%clk 0:01:29.3]} 38. Rd5 {[%clk 0:00:15.1]} 38...
Ke6 {[%clk 0:01:28.1]} 39. Kd4 {[%clk 0:00:15.4]} 39... g5 {[%clk 0:01:26.7]}
40. c5 {[%clk 0:00:15.4]} 40... bxc5+ {[%clk 0:01:25.8]} 41. bxc5 {[%clk
0:00:16.3]} 41... h5 {[%clk 0:01:25.1]} 42. g4 {[%clk 0:00:16.4]} 42... hxg4
{[%clk 0:01:24.3]} 43. hxg4 {[%clk 0:00:17.3]} 43... Ke7 {[%clk 0:01:20.5]} 44.
Rd6 {[%clk 0:00:16.6]} 44... Rb7 {[%clk 0:01:17.6]} 45. Kd5 {[%clk 0:00:16.6]}
45... Rb3 {[%clk 0:01:14.2]} 46. Ra6 {[%clk 0:00:16.7]} 46... Rd3+ {[%clk
0:01:13]} 47. Kc6 {[%clk 0:00:14.8]} 47... Rf3 {[%clk 0:01:12.4]} 48. Rxa7+
{[%clk 0:00:14.9]} 48... Ke6 {[%clk 0:01:12.2]} 49. Ra8 {[%clk 0:00:14.5]} 49...
Rxf2 {[%clk 0:01:12.6]} 50. Re8+ {[%clk 0:00:14.5]} 50... Kf7 {[%clk 0:01:12.7]}
51. Re4 {[%clk 0:00:14.6]} 51... Ra2 {[%clk 0:01:12.3]} 52. a4 {[%clk
0:00:14.9]} 52... Kg6 {[%clk 0:01:12]} 53. Kc7 {[%clk 0:00:14]} 53... Kf7 {[%clk
0:01:12]} 54. c6 {[%clk 0:00:14.3]} 54... f5 {[%clk 0:01:10.3]} 55. gxf5 {[%clk
0:00:13.9]} 55... Kf6 {[%clk 0:01:11.2]} 56. Kc8 {[%clk 0:00:14.2]} 56... Kxf5
{[%clk 0:01:11]} 57. Rc4 {[%clk 0:00:14.1]} 57... g4 {[%clk 0:01:10.4]} 58. c7
{[%clk 0:00:14.1]} 58... g3 {[%clk 0:01:09.7]} 59. Kb8 {[%clk 0:00:12.9]} 59...
Rb2+ {[%clk 0:01:07.8]} 60. Ka8 {[%clk 0:00:12.2]} 60... g2 {[%clk 0:01:00]} 61.
Rc1 {[%clk 0:00:12.1]} 61... Rc2 {[%clk 0:00:56.1]} 62. Rxc2 {[%clk 0:00:11.4]}
62... g1=Q {[%clk 0:00:55.8]} 63. c8=Q+ {[%clk 0:00:11.8]} 63... Ke5 {[%clk
0:00:55.2]} 64. Qc7+ {[%clk 0:00:11.5]} 64... Kd4 {[%clk 0:00:55.1]} 65. Qb6+
{[%clk 0:00:11.2]} 65... Kd3 {[%clk 0:00:54.4]} 66. Qxg1 {[%clk 0:00:12.1]}
66... Kxc2 {[%clk 0:00:55.1]} 67. a5 {[%clk 0:00:12.2]} 67... Kb3 {[%clk
0:00:56]} 68. a6 {[%clk 0:00:13.1]} 68... Kb4 {[%clk 0:00:55.8]} 69. a7 {[%clk
0:00:14]} 69... Ka5 {[%clk 0:00:55.2]} 70. Kb7 {[%clk 0:00:14.9]} 70... Kb5
{[%clk 0:00:55]} 71. a8=Q {[%clk 0:00:15.8]} 71... Kc4 {[%clk 0:00:55.8]} 72.
Qa4+ {[%clk 0:00:15]} 72... Kd5 {[%clk 0:00:56.7]} 73. Qg5+ {[%clk 0:00:15]}
73... Ke6 {[%clk 0:00:56.3]} 74. Qc6+ {[%clk 0:00:15]} 74... Kf7 {[%clk
0:00:56.4]} 75. Qgg6+ {[%clk 0:00:15]} 75... Kf8 {[%clk 0:00:56.2]} 76. Qcd6#
{[%clk 0:00:15]} 1-0

[Event "*** Titled Tuesday Blitz"]
[Site "Chess.com"]
[Date "2020.05.19"]
[Round "6"]
[White "kirillshevchenko"]
[Black "Funo09"]
[Result "0-1"]
[WhiteElo "2926"]
[BlackElo "2755"]
[TimeControl "180+1"]
[EndTime "13:09:53 PDT"]
[Termination "Funo09 won on time"]

1. e4 {[%clk 0:03:00.9]} 1... Nf6 {[%clk 0:02:58.9]} 2. e5 {[%clk 0:03:00.9]}
2... Nd5 {[%clk 0:02:59.2]} 3. d4 {[%clk 0:03:01.3]} 3... Nb6 {[%clk 0:03:00.1]}
4. c4 {[%clk 0:03:01.2]} 4... d6 {[%clk 0:02:59.9]} 5. exd6 {[%clk 0:03:01.9]}
5... exd6 {[%clk 0:03:00.8]} 6. Nc3 {[%clk 0:03:02.1]} 6... Be7 {[%clk
0:02:59.5]} 7. Bd3 {[%clk 0:03:02.2]} 7... O-O {[%clk 0:02:58.6]} 8. Nge2 {[%clk
0:03:02.8]} 8... Nc6 {[%clk 0:02:58]} 9. O-O {[%clk 0:03:02.3]} 9... Bg4 {[%clk
0:02:57.4]} 10. b3 {[%clk 0:03:00.5]} 10... Bf6 {[%clk 0:02:41.7]} 11. Be3
{[%clk 0:03:00.3]} 11... Re8 {[%clk 0:02:39]} 12. Qd2 {[%clk 0:02:59]} 12... Qd7
{[%clk 0:02:19]} 13. Ne4 {[%clk 0:02:45.9]} 13... Bd8 {[%clk 0:02:14.1]} 14.
N2c3 {[%clk 0:02:26.8]} 14... Bh5 {[%clk 0:02:08.2]} 15. Rae1 {[%clk 0:02:19.2]}
15... Bg6 {[%clk 0:02:03.1]} 16. d5 {[%clk 0:02:17.7]} 16... Ne5 {[%clk
0:01:51.6]} 17. Bb1 {[%clk 0:02:15.2]} 17... Bh4 {[%clk 0:01:44.4]} 18. Bd4
{[%clk 0:02:02.2]} 18... Qg4 {[%clk 0:01:35.3]} 19. Kh1 {[%clk 0:01:47]} 19...
f5 {[%clk 0:01:05.7]} 20. h3 {[%clk 0:01:34.4]} 20... Qh5 {[%clk 0:00:56.4]} 21.
Ng3 {[%clk 0:01:34.6]} 21... Bxg3 {[%clk 0:00:37.9]} 22. fxg3 {[%clk 0:01:35.5]}
22... Nbd7 {[%clk 0:00:35]} 23. Nb5 {[%clk 0:01:32.2]} 23... Rac8 {[%clk
0:00:33.5]} 24. Nxa7 {[%clk 0:01:31.9]} 24... Ra8 {[%clk 0:00:34]} 25. Nb5
{[%clk 0:01:32.3]} 25... Rac8 {[%clk 0:00:34.6]} 26. Qf4 {[%clk 0:01:29.9]}
26... Rf8 {[%clk 0:00:32.2]} 27. Bc2 {[%clk 0:01:25.8]} 27... h6 {[%clk
0:00:31]} 28. Be3 {[%clk 0:01:12.3]} 28... Bh7 {[%clk 0:00:29.8]} 29. Nd4 {[%clk
0:01:07.8]} 29... Nc5 {[%clk 0:00:24.5]} 30. Rd1 {[%clk 0:00:50.6]} 30... Ne4
{[%clk 0:00:19.1]} 31. Bxe4 {[%clk 0:00:40.9]} 31... fxe4 {[%clk 0:00:18.9]} 32.
Qh4 {[%clk 0:00:41.7]} 32... Qxh4 {[%clk 0:00:15.4]} 33. gxh4 {[%clk 0:00:42.6]}
33... Rxf1+ {[%clk 0:00:14.6]} 34. Rxf1 {[%clk 0:00:43.5]} 34... c6 {[%clk
0:00:14.9]} 35. Ne6 {[%clk 0:00:40.3]} 35... cxd5 {[%clk 0:00:14.2]} 36. cxd5
{[%clk 0:00:41.2]} 36... Bg6 {[%clk 0:00:14.3]} 37. Bf4 {[%clk 0:00:38]} 37...
Rc2 {[%clk 0:00:12.7]} 38. Bxe5 {[%clk 0:00:32.3]} 38... dxe5 {[%clk 0:00:13.6]}
39. d6 {[%clk 0:00:14.5]} 39... Rd2 {[%clk 0:00:13.4]} 40. Rf8+ {[%clk
0:00:09.6]} 40... Kh7 {[%clk 0:00:13.6]} 41. Rd8 {[%clk 0:00:10.2]} 41... Bf5
{[%clk 0:00:10.1]} 42. Nf8+ {[%clk 0:00:10.3]} 42... Kg8 {[%clk 0:00:10.6]} 43.
h5 {[%clk 0:00:10.5]} 43... e3 {[%clk 0:00:09.5]} 44. d7 {[%clk 0:00:10]} 44...
e2 {[%clk 0:00:08.4]} 45. Ng6+ {[%clk 0:00:06.7]} 45... Kf7 {[%clk 0:00:08.8]}
46. Nxe5+ {[%clk 0:00:06.8]} 46... Ke7 {[%clk 0:00:07.9]} 47. Re8+ {[%clk
0:00:06.7]} 47... Kf6 {[%clk 0:00:07.2]} 48. Nf3 {[%clk 0:00:04]} 48... Bxd7
{[%clk 0:00:07.5]} 49. Re3 {[%clk 0:00:02.2]} 49... Rxa2 {[%clk 0:00:06.6]} 0-1